bitfinex/quotes_ETHUSD_20260202
["timestamp","ask_amount","ask_price","bid_price","bid_amount"]
[1770005548210,0.1024,2217.4,2216.5,0.001]
[1770005548844,12.71896373,2218.4,2216.5,0.001]
[1770005549031,0.3359703,2218.2,2216.5,12.90502503]
[1770005549839,13.05493403,2218.2,2216.5,0.001]
[1770005550457,13.05493403,2218.0,2216.5,0.001]
[1770005550876,14.18207593,2218.0,2216.5,0.001]
[1770005551034,14.18207593,2218.0,2216.1,0.04120693]
[1770005551035,13.05493403,2217.8,2216.1,0.04120693]
[1770005551366,13.05493403,2217.6,2215.7,0.001]
[1770005551667,13.05493403,2217.6,2215.7,12.90502503]
[1770005551668,0.3359703,2217.6,2215.7,12.90502503]
[1770005552029,0.1024,2217.6,2215.7,12.90502503]
[1770005552225,0.1024,2217.7,2215.7,12.90502503]
[1770005552427,0.2335703,2217.6,2215.9,12.90402503]
[1770005553254,0.1024,2217.3,2215.7,0.001]
[1770005553472,0.1024,2217.1,2215.7,0.001]
[1770005553771,0.1024,2217.2,2215.7,12.90502503]
[1770005553946,0.3359703,2217.6,2216.5,0.001]
[1770005554119,13.05493403,2217.6,2216.5,0.001]
[1770005554321,0.3359703,2217.6,2216.5,0.001]
[1770005554535,13.05493403,2217.6,2215.8,1.2905025]
[1770005554840,0.2335703,2217.3,2215.8,1.2905025]
[1770005555027,0.2335703,2217.3,2215.7,12.90502503]
[1770005555932,0.2335703,2217.1,2215.7,0.001]
[1770005556129,0.1024,2217.2,2215.7,0.001]
[1770005556334,0.2335703,2217.1,2215.7,0.001]
[1770005556638,0.1024,2217.0,2215.7,0.001]
[1770005556838,0.1024,2216.6,2215.6,0.001]
[1770005557136,0.1024,2216.2,2214.2,12.90402503]
[1770005557335,0.2335703,2215.7,2214.2,12.90402503]
[1770005557638,0.1024,2215.8,2214.2,12.90402503]
[1770005557836,0.1024,2216.4,2214.2,12.90402503]
[1770005558041,0.1024,2216.4,2214.4,12.77951918]
[1770005558441,0.1024,2216.2,2214.4,12.77951918]
[1770005559003,12.93318766,2216.1,2214.3,1.2907025]
[1770005559143,1.62824089,2214.4,2212.9,0.1226856]
[1770005559474,0.2348,2214.4,2212.9,12.90220478]
[1770005560178,0.3359703,2214.3,2212.9,0.1226856]
[1770005560383,0.2335703,2214.0,2212.9,0.1226856]
[1770005560543,14.43759391,2213.8,2211.6,12.77951918]
[1770005560880,13.26915796,2213.6,2211.3,12.77951918]
[1770005561049,2.13209808,2213.5,2211.3,12.77951918]
[1770005561372,0.1024,2213.4,2211.3,12.77951918]
[1770005561937,0.1024,2213.9,2211.3,12.77951918]
[1770005562139,2.94808939,2213.9,2211.5,12.77951918]
[1770005562336,0.2335703,2213.8,2211.5,12.77951918]
[1770005562565,0.1024,2213.9,2211.5,12.77951918]
[1770005563162,0.2348,2214.4,2211.5,12.77951918]
[1770005563163,0.1024,2214.3,2211.5,12.77951918]
[1770005563361,0.67835383,2214.3,2211.5,12.77951918]
[1770005563537,0.67835383,2214.3,2211.2,1.03720693]
[1770005563538,0.1024,2213.9,2211.7,12.77951918]
[1770005564483,0.1024,2214.2,2211.7,12.77951918]
[1770005565476,0.1024,2214.7,2211.7,12.77951918]
[1770005565677,0.1024,2214.7,2211.5,9.77113103]
[1770005565678,0.1024,2214.7,2211.9,12.77951918]
[1770005566549,13.50914149,2215.1,2212.0,0.1024]
[1770005566866,14.0193,2215.3,2212.3,12.77951918]
[1770005567066,15.1478321,2215.3,2212.5,13.71685423]
[1770005567255,1.12852309,2215.3,2212.5,13.71685423]
[1770005567582,0.1024,2215.2,2212.7,13.71685423]
[1770005568586,13.57250201,2215.4,2212.7,13.71685423]
[1770005568785,14.70098051,2215.4,2212.7,13.71685423]
[1770005568988,1.21887595,2215.7,2212.7,13.71685423]
[1770005569154,15.30783764,2215.7,2212.9,13.71685423]
[1770005569351,0.1024,2215.6,2212.9,13.71685423]
[1770005570483,4.8294,2215.6,2212.9,13.71685423]
[1770005570672,0.1024,2215.6,2212.9,13.71685423]
[1770005570992,0.50945383,2215.9,2212.9,13.71685423]
[1770005571195,0.1024,2215.8,2213.1,13.71685423]
[1770005571401,1.30355877,2216.0,2213.1,13.71685423]
[1770005571559,0.1024,2215.9,2213.1,13.71685423]
[1770005571760,0.51545341,2215.9,2213.1,13.71685423]
[1770005571988,0.1024,2215.7,2213.1,13.71685423]
[1770005572175,0.37339087,2215.8,2213.3,13.71685423]
[1770005572494,0.37339087,2215.8,2213.2,0.45906687]
[1770005572495,0.37339087,2215.8,2213.7,13.81925423]
[1770005572665,0.37339087,2215.8,2213.9,13.71685423]
[1770005573712,0.37339087,2215.8,2214.1,13.71685423]
[1770005573857,0.0011,2216.2,2214.2,13.71685423]
[1770005574059,0.0011,2216.2,2214.4,13.71685423]
[1770005576562,13.47010201,2215.9,2212.7,13.71685423]
[1770005576826,13.57250201,2214.4,2212.2,13.71685423]
[1770005577038,1.12882105,2214.7,2212.8,0.23627474]
[1770005577039,0.2335703,2214.1,2212.8,0.23627474]
[1770005577224,0.1024,2214.2,2212.1,13.71685423]
[1770005577520,0.1024,2214.0,2212.1,13.71685423]
[1770005577694,0.56578716,2214.2,2212.1,13.71685423]
[1770005577897,0.1024,2214.1,2212.1,13.71685423]
[1770005578096,0.63078087,2214.1,2211.6,13.71685423]
[1770005578298,0.1024,2214.2,2211.6,13.71685423]
[1770005578503,0.1024,2214.3,2211.6,13.71685423]
[1770005578807,0.73318087,2214.3,2211.6,13.71685423]
[1770005579005,0.1024,2214.5,2211.8,13.71685423]
[1770005579314,0.1024,2214.8,2211.8,13.71685423]
[1770005579516,0.1024,2214.8,2212.0,13.71685423]
[1770005579704,0.73318087,2214.8,2212.5,13.71685423]
[1770005579900,0.73318087,2214.8,2212.7,13.71685423]
[1770005580101,0.2335703,2214.7,2212.7,13.71685423]
[1770005580301,14.83231911,2215.1,2212.7,13.71685423]
[1770005580541,0.1024,2214.6,2212.7,13.71685423]
[1770005580731,1.19656803,2215.0,2212.7,13.71685423]
[1770005580915,0.1024,2214.9,2212.7,13.71685423]
[1770005581316,0.63078087,2215.4,2212.7,13.71685423]
[1770005581498,0.0011,2215.5,2212.7,13.71685423]
[1770005581825,13.57250201,2215.3,2212.7,13.71685423]
[1770005582025,1.19472212,2215.2,2212.7,13.71685423]
[1770005582199,0.1024,2215.0,2212.7,13.71685423]
[1770005582525,15.30025336,2215.3,2212.7,13.71685423]
[1770005582526,0.63078087,2215.3,2212.7,13.71685423]
[1770005582725,0.63078087,2215.3,2212.9,13.71685423]
[1770005583033,0.1024,2215.3,2212.9,13.71685423]
[1770005583212,0.1035,2215.5,2212.9,13.71685423]
[1770005583616,0.0011,2215.5,2213.3,13.71685423]
[1770005584428,0.0011,2215.5,2213.5,13.71685423]
[1770005584801,0.0011,2216.2,2213.9,13.71685423]
[1770005585018,0.0011,2216.2,2214.1,13.71685423]
[1770005585407,0.0011,2216.2,2214.5,13.71685423]
[1770005585605,0.0011,2216.4,2214.7,13.71685423]
[1770005585831,0.37382669,2216.7,2214.7,13.71685423]
[1770005586127,0.37382669,2216.7,2214.9,13.71685423]
[1770005589032,0.3359703,2216.6,2214.4,13.49745958]
[1770005589211,14.15184438,2216.6,2214.4,13.49745958]
[1770005589801,0.56578716,2216.5,2214.4,13.49745958]
[1770005589997,0.37382669,2216.7,2214.4,13.49745958]
[1770005590205,0.37382669,2216.7,2214.6,13.49745958]
[1770005590423,0.37382669,2216.7,2214.7,13.49745958]
[1770005591804,0.37382669,2216.7,2213.6,0.1024]
[1770005591805,12.95527635,2216.6,2213.6,0.1024]
[1770005592000,12.95527635,2216.6,2213.7,14.44445958]
[1770005592228,0.1024,2216.6,2213.7,14.44445958]
[1770005592534,0.37382669,2216.7,2214.2,13.49745958]
[1770005593241,0.1024,2215.2,2213.5,0.001]
[1770005593433,1.29896803,2215.2,2213.5,0.001]
[1770005593650,12.61930605,2215.4,2213.5,0.001]
[1770005593804,14.0193,2216.0,2213.5,13.49845958]
[1770005594008,0.1024,2216.3,2213.5,13.49845958]
[1770005594209,12.72170605,2216.3,2213.5,13.49845958]
[1770005594404,0.1024,2216.1,2213.5,13.49845958]
[1770005594709,0.1024,2216.1,2213.6,14.5]
[1770005594918,0.1024,2216.1,2213.7,14.44445958]
[1770005595635,0.0011,2216.4,2213.9,13.49745958]
[1770005596214,0.0011,2216.4,2214.1,13.49745958]
[1770005596535,0.2346703,2216.4,2214.1,13.49745958]
[1770005596738,0.0011,2216.4,2214.1,13.49745958]
[1770005597033,0.0011,2216.4,2214.3,13.49745958]
[1770005599939,12.62040605,2216.4,2214.3,13.49745958]
[1770005600234,13.25118692,2216.4,2214.3,13.49745958]
[1770005600443,0.1024,2216.2,2214.3,13.49745958]
[1770005600609,12.62040605,2216.4,2213.7,15.447]
[1770005600610,0.40921746,2216.3,2214.0,13.49745958]
[1770005600810,0.0011,2216.4,2214.8,13.49745958]
[1770005601119,0.0011,2216.4,2215.0,13.49745958]
[1770005601717,0.0011,2216.4,2214.6,1.38002643]
[1770005602028,0.0011,2216.4,2214.7,0.947]
[1770005602927,0.0011,2216.4,2214.7,14.44445958]
[1770005603130,0.0011,2216.4,2214.8,13.49745958]
[1770005607028,0.0011,2216.6,2214.8,13.59985958]
[1770005607830,0.0011,2216.2,2214.8,13.49745958]
[1770005612242,0.0011,2216.4,2214.8,13.49745958]
[1770005612951,0.0011,2216.4,2215.0,13.49745958]
[1770005613127,0.0011,2216.4,2215.2,13.49745958]
[1770005614352,0.0011,2216.4,2214.7,14.44445958]
[1770005614728,0.0011,2216.4,2214.8,13.49745958]
[1770005614928,0.0011,2216.4,2214.9,0.947]
[1770005615660,0.0011,2216.4,2214.9,14.44445958]
[1770005617428,0.0011,2216.4,2214.9,0.947]
[1770005618261,12.9520835,2216.4,2214.9,0.947]
[1770005618664,13.2869538,2216.3,2214.5,0.001]
[1770005620248,13.0533835,2216.3,2214.5,0.001]
[1770005620435,0.1024,2216.1,2214.5,0.001]
[1770005620635,1.51519583,2216.1,2214.5,0.001]
[1770005620863,1.41279583,2216.1,2214.5,0.001]
[1770005621174,1.41279583,2216.1,2214.5,13.72866343]
[1770005621379,0.0011,2216.4,2214.5,13.72866343]
[1770005621943,0.0011,2216.4,2214.9,0.001]
[1770005622148,0.0011,2216.4,2214.3,0.948]
[1770005622149,0.0011,2216.2,2214.3,0.94524562]
[1770005622440,0.0011,2216.2,2214.6,0.001]
[1770005622653,1.29641835,2216.2,2214.6,0.001]
[1770005623160,1.29641835,2216.2,2214.6,13.72866343]
[1770005623466,0.0011,2216.2,2214.6,13.72866343]
[1770005624171,0.0011,2216.4,2214.8,13.72766343]
[1770005624456,0.0011,2216.6,2214.8,13.72766343]
[1770005624635,0.0011,2216.6,2214.7,14.6024]
[1770005624636,0.0011,2216.6,2215.0,13.72766343]
[1770005624830,0.0011,2216.6,2215.2,13.72766343]
[1770005625038,0.0011,2216.6,2215.4,13.72766343]
[1770005625232,0.0011,2216.6,2215.6,13.72766343]
[1770005625859,0.0011,2216.6,2215.3,14.67466343]
[1770005626357,0.0011,2216.6,2215.5,13.72766343]
[1770005627535,0.0011,2216.6,2215.3,0.947]
[1770005628783,0.0011,2216.6,2215.3,14.88253965]
[1770005629356,0.0011,2216.6,2215.3,0.947]
[1770005630452,12.9841359,2216.6,2215.3,0.947]
[1770005631274,0.0011,2216.6,2215.3,0.947]
[1770005631643,12.9830359,2216.3,2214.6,0.001]
[1770005631845,1.33190062,2216.2,2214.6,0.001]
[1770005632046,1.33190062,2216.2,2214.6,13.93653965]
[1770005632364,12.9830359,2216.4,2214.6,13.93653965]
[1770005632878,0.2335703,2216.3,2214.6,13.93653965]
[1770005633382,12.9830359,2216.3,2214.6,13.93653965]
[1770005633567,1.51080483,2216.2,2214.6,0.001]
[1770005633878,1.51080483,2216.2,2214.6,13.93653965]
[1770005634044,13.3201062,2216.6,2214.6,13.93653965]
[1770005634765,13.0865359,2216.6,2214.8,0.001]
[1770005634969,0.0011,2216.2,2214.8,13.93653965]
[1770005636287,12.9830359,2216.9,2214.8,13.93653965]
[1770005636447,12.9830359,2216.7,2214.8,13.93653965]
[1770005636649,1.29830359,2216.6,2215.0,13.93553965]
[1770005636947,1.29830359,2216.6,2215.0,14.88253965]
[1770005637154,12.9830359,2216.5,2215.0,0.947]
[1770005637575,14.28133949,2216.6,2215.0,14.88253965]
[1770005637776,14.28133949,2216.6,2215.0,0.947]
[1770005638068,1.42813395,2216.5,2215.0,0.947]
[1770005638445,14.41116985,2216.5,2215.0,0.947]
[1770005638884,12.9830359,2216.3,2214.8,0.001]
[1770005639774,12.9830359,2216.1,2214.8,0.001]
[1770005640370,12.9830359,2215.9,2214.8,0.001]
[1770005640572,1.29830359,2215.8,2214.8,0.001]
[1770005640999,12.9830359,2215.9,2214.6,0.001]
[1770005641217,12.9830359,2215.7,2214.5,0.001]
[1770005641513,0.1024,2215.8,2214.5,0.001]
[1770005641675,12.9830359,2216.1,2214.5,0.001]
[1770005641877,12.9830359,2216.1,2214.5,13.93653965]
[1770005642071,1.29830359,2216.1,2214.5,13.93653965]
[1770005642279,12.9830359,2216.1,2214.5,0.001]
[1770005642580,12.9830359,2216.1,2214.5,13.93653965]
[1770005643277,14.41116985,2216.5,2214.5,14.88353965]
[1770005643802,1.42813395,2216.5,2214.5,14.88353965]
[1770005643992,0.0011,2217.3,2214.9,13.93553965]
[1770005644608,12.9841359,2217.3,2214.9,13.93553965]
[1770005644776,0.0011,2217.3,2214.9,13.93553965]
[1770005645901,0.0011,2217.3,2215.0,13.93553965]
[1770005647274,0.0011,2217.3,2215.2,13.93553965]
[1770005647481,0.0011,2217.3,2215.4,13.93553965]
[1770005647694,0.0011,2217.3,2215.6,13.02520159]
[1770005648785,0.0011,2217.1,2215.6,13.02520159]
[1770005649696,0.0011,2217.3,2215.6,13.02520159]
[1770005650004,0.0011,2217.5,2215.7,13.02520159]
[1770005650205,0.0011,2217.5,2215.6,13.02520159]
[1770005651587,0.0011,2217.5,2215.8,13.02520159]
[1770005652220,0.0011,2217.5,2216.0,13.02520159]
[1770005652520,0.1024,2218.1,2216.0,13.02520159]
[1770005652678,13.81456497,2217.8,2216.0,13.02520159]
[1770005652883,13.94573527,2217.7,2216.0,13.02520159]
[1770005653078,13.81456497,2217.4,2215.6,0.947]
[1770005653312,0.36306726,2217.9,2215.1,13.02620159]
[1770005653313,13.81456497,2216.8,2215.1,13.02620159]
[1770005653517,0.1024,2216.2,2215.1,0.001]
[1770005653684,0.1024,2215.8,2214.5,0.001]
[1770005653879,1.4837575,2215.8,2214.5,0.001]
[1770005654085,0.1024,2215.3,2214.0,0.001]
[1770005654286,0.1024,2215.1,2213.7,0.001]
[1770005654917,0.34574175,2215.1,2213.7,0.001]
[1770005655415,0.1024,2215.1,2213.7,0.001]
[1770005655724,14.15923729,2215.3,2213.7,0.001]
[1770005655725,0.44905232,2215.0,2213.7,0.001]
[1770005656216,0.2335703,2215.2,2213.7,0.001]
[1770005656384,13.81258497,2215.1,2213.7,0.001]
[1770005656587,0.1024,2214.7,2213.7,0.001]
[1770005657215,0.1024,2214.9,2213.7,0.001]
[1770005657402,1.3813575,2215.8,2213.7,13.02620159]
[1770005657403,0.1024,2215.7,2213.7,13.02620159]
[1770005657805,13.70919497,2215.6,2213.7,13.02620159]
[1770005658001,0.1024,2215.4,2213.7,13.02620159]
[1770005658208,1.3811595,2215.5,2213.7,13.02620159]
[1770005658409,0.1024,2215.8,2213.7,13.02620159]
[1770005659116,0.1024,2215.9,2213.7,13.02620159]
[1770005659319,13.70919497,2216.8,2213.7,13.02620159]
[1770005659617,1.19937048,2216.9,2213.7,13.02620159]
[1770005659618,13.70919497,2216.6,2213.7,13.02620159]
[1770005659915,0.1024,2216.1,2213.7,13.02620159]
[1770005660104,1.4835595,2216.1,2213.9,13.02520159]
[1770005660304,0.1024,2215.9,2213.9,13.02520159]
[1770005660917,0.1024,2215.9,2214.0,0.947]
[1770005661119,0.1024,2215.9,2214.1,13.02520159]
[1770005661315,13.70919497,2217.0,2214.1,13.02520159]
[1770005661710,13.70919497,2217.0,2214.2,13.02520159]
[1770005661931,1.3710295,2216.9,2214.4,13.02520159]
[1770005662104,0.0011,2217.1,2214.6,13.02520159]
[1770005663227,0.0011,2217.1,2214.8,13.02520159]
[1770005663640,0.0011,2217.1,2215.3,13.02520159]
[1770005663939,0.0011,2217.1,2215.5,13.02520159]
[1770005665823,0.0011,2217.3,2215.6,13.02520159]
[1770005666034,0.1035,2218.4,2215.7,13.02520159]
[1770005666236,0.0011,2218.4,2215.7,13.02520159]
[1770005666437,0.1035,2218.4,2215.7,13.02520159]
[1770005666908,0.0011,2218.4,2215.7,13.02520159]
[1770005667114,0.0011,2218.4,2215.8,13.02520159]
[1770005667307,0.0011,2218.4,2216.4,13.02520159]
[1770005667510,0.0011,2218.4,2216.3,9.91284952]
[1770005667511,0.0011,2218.4,2216.6,13.02520159]
[1770005668313,0.0011,2218.4,2216.5,0.947]
[1770005668314,0.0011,2218.4,2216.8,13.02520159]
[1770005673055,0.0011,2218.4,2216.7,0.947]
[1770005673860,0.0011,2218.2,2216.8,13.02520159]
[1770005674949,0.0011,2218.4,2216.9,13.02520159]
[1770005675757,0.0011,2218.4,2216.7,0.947]
[1770005675958,0.0011,2218.4,2216.7,13.97220159]
[1770005679533,13.91520731,2218.4,2216.7,0.947]
[1770005681357,13.68163701,2218.4,2216.7,0.947]
[1770005682334,13.68163701,2218.4,2216.7,14.17157249]
[1770005683272,0.0011,2218.4,2216.7,14.17157249]
[1770005683574,0.0011,2218.4,2216.8,13.22457249]
[1770005684151,13.57923701,2218.4,2216.8,13.22457249]
[1770005684372,13.57923701,2218.4,2216.7,0.947]
[1770005684373,13.68053701,2218.1,2216.7,0.947]
[1770005684571,13.68053701,2217.9,2216.0,13.22457249]
[1770005685154,13.57813701,2217.7,2215.2,14.0193]
[1770005685357,13.68053701,2216.9,2215.1,13.22457249]
[1770005685585,13.68053701,2216.9,2214.8,14.17157249]
[1770005685746,13.57813701,2216.6,2214.8,0.947]
[1770005686093,0.1024,2216.5,2214.8,0.947]
[1770005686261,0.1024,2216.9,2215.8,0.001]
[1770005686462,13.68053701,2216.9,2215.8,0.001]
[1770005686673,0.2335703,2217.0,2214.8,14.17157249]
[1770005686674,13.22051561,2216.7,2214.8,14.17157249]
[1770005686876,0.1024,2216.7,2214.8,14.17157249]
[1770005687477,0.1024,2217.1,2214.8,14.17157249]
[1770005688683,0.1024,2217.4,2214.8,14.17157249]
[1770005689046,1.38117073,2217.6,2215.2,12.99157453]
[1770005689248,13.11811561,2218.0,2215.3,12.99157453]
[1770005689552,0.0011,2218.2,2215.7,12.99157453]
[1770005689748,0.0011,2218.2,2215.9,12.99157453]
[1770005690269,13.22051561,2218.1,2215.9,12.99157453]
[1770005690646,13.11811561,2218.1,2215.9,12.99157453]
[1770005690851,0.0011,2218.2,2215.8,0.947]
[1770005690852,1.31192156,2218.0,2216.0,12.99157453]
[1770005691059,0.0011,2218.2,2216.0,12.99157453]
[1770005693159,0.0011,2218.2,2216.2,12.99157453]
[1770005695195,0.0011,2218.2,2216.4,12.99157453]
[1770005695579,0.0011,2218.2,2216.6,12.99157453]
[1770005695759,0.0011,2218.2,2216.8,12.99157453]
[1770005696097,0.0011,2218.2,2216.9,12.99157453]
[1770005698756,0.0011,2218.0,2216.9,12.99157453]
[1770005700388,0.0011,2218.0,2216.7,0.947]
[1770005700389,0.0011,2218.0,2216.7,13.93757453]
[1770005703319,0.0011,2218.0,2216.7,0.946]
[1770005703467,0.0011,2218.0,2216.7,13.93757453]
[1770005704278,0.0011,2218.2,2216.8,12.99157453]
[1770005704598,0.0011,2218.2,2216.9,12.99157453]
[1770005705410,13.45408591,2218.1,2216.7,0.946]
[1770005705574,13.45408591,2218.1,2216.0,12.99157453]
[1770005705780,13.45408591,2218.1,2215.9,0.001]
[1770005705991,13.35168591,2217.6,2215.9,0.001]
[1770005706193,0.1024,2217.9,2215.9,12.99257453]
[1770005706399,0.0011,2218.4,2216.4,12.99157453]
[1770005706742,0.0011,2218.4,2216.6,12.99157453]
[1770005707018,0.0011,2219.3,2217.7,12.99157453]
[1770005707219,0.0011,2219.3,2217.9,12.99157453]
[1770005707444,0.0011,2219.3,2217.8,0.946]
[1770005708087,0.0011,2219.3,2217.8,14.683961]
[1770005709573,0.0011,2219.3,2217.2,13.737961]
[1770005709842,0.0011,2219.3,2217.3,0.946]
[1770005710017,0.0011,2219.3,2217.3,14.683961]
[1770005711642,13.50918042,2219.1,2217.3,0.946]
[1770005711811,0.0011,2218.9,2217.3,0.946]
[1770005713026,0.0011,2218.9,2217.3,14.683961]
[1770005713820,0.0011,2218.9,2217.4,13.737961]
[1770005714041,0.0011,2219.1,2217.9,13.737961]
[1770005714347,0.70873631,2221.4,2219.8,0.2335703]
[1770005714551,0.0011,2221.4,2219.9,0.946]
[1770005714709,13.17321012,2221.4,2219.9,0.946]
[1770005714908,13.27451012,2221.2,2219.9,0.946]
[1770005715110,13.27451012,2221.2,2219.2,0.946]
[1770005715711,13.27451012,2221.2,2218.9,4.85635377]
[1770005716140,13.27451012,2220.6,2218.9,4.85635377]
[1770005716927,0.1024,2220.3,2218.9,4.85635377]
[1770005717221,1.32745101,2220.3,2218.9,4.85635377]
[1770005717429,0.1024,2220.2,2218.9,4.85635377]
[1770005717831,1.32745101,2220.3,2218.9,4.85635377]
[1770005718030,1.31732101,2221.3,2219.4,13.737961]
[1770005718235,13.17211012,2222.4,2220.2,13.737961]
[1770005718434,0.38444025,2222.5,2220.4,13.737961]
[1770005718634,0.38444025,2222.5,2220.7,13.737961]
[1770005718843,13.17211012,2223.4,2220.5,0.946]
[1770005718844,14.29652488,2223.4,2220.5,0.946]
[1770005719059,13.17211012,2223.0,2220.5,0.946]
[1770005719211,13.17211012,2222.7,2220.6,14.5]
[1770005719824,0.1024,2222.6,2220.6,14.5]
[1770005720052,13.27451012,2222.6,2220.6,0.946]
[1770005720219,13.17211012,2222.6,2220.6,0.946]
[1770005720423,14.48932113,2222.5,2220.7,14.5]
[1770005720626,0.1024,2222.1,2219.9,14.683961]
[1770005721043,13.27451012,2222.1,2220.0,14.5]
[1770005721242,13.27451012,2222.1,2219.9,14.683961]
[1770005721527,13.27451012,2222.1,2219.9,0.946]
[1770005721734,13.27451012,2221.9,2219.9,15.446]
[1770005722129,13.27451012,2221.7,2219.9,0.946]
[1770005722451,0.1024,2221.7,2219.9,0.946]
[1770005722755,0.1024,2221.7,2220.0,14.5]
[1770005723129,0.3359703,2222.2,2220.0,14.5]
[1770005723330,0.1024,2221.9,2220.0,14.5]
[1770005724356,14.49042113,2222.5,2220.1,13.737961]
[1770005724523,14.49042113,2222.5,2219.9,0.946]
[1770005724524,13.27451012,2222.4,2219.9,0.946]
[1770005724724,0.1024,2221.8,2219.9,0.946]
[1770005724925,0.1024,2221.8,2220.0,14.5]
[1770005725257,1.42985101,2221.8,2220.0,14.5]
[1770005725631,1.32745101,2221.8,2220.0,28.237961]
[1770005725938,13.27451012,2222.2,2220.0,14.5]
[1770005726138,0.0011,2222.5,2219.9,0.946]
[1770005726139,13.17211012,2221.5,2219.9,0.946]
[1770005726651,13.27451012,2221.2,2219.9,0.946]
[1770005726825,1.32745101,2221.1,2219.9,0.946]
[1770005727023,13.27451012,2221.0,2219.4,3.97299193]
[1770005727228,13.27451012,2221.0,2218.9,0.945]
[1770005727545,13.27451012,2221.0,2219.0,28.237961]
[1770005727748,0.1024,2221.0,2219.1,13.737961]
[1770005728159,13.27451012,2221.4,2219.1,13.737961]
[1770005728635,13.27451012,2221.2,2219.1,13.737961]
[1770005729762,13.17211012,2221.7,2219.4,13.737961]
[1770005729963,0.1024,2221.6,2219.4,13.737961]
[1770005730332,13.17211012,2221.1,2219.0,14.5]
[1770005730663,0.1024,2220.5,2218.8,14.0193]
[1770005730837,0.1024,2220.5,2218.6,0.945]
[1770005731036,13.17211012,2220.6,2218.6,15.445]
[1770005731234,0.1024,2220.9,2218.6,15.445]
[1770005731235,0.1024,2220.9,2218.7,13.737961]
[1770005731435,13.17211012,2222.2,2219.0,13.840361]
[1770005731638,13.17211012,2222.2,2219.8,13.737961]
[1770005731831,13.17211012,2222.2,2219.9,0.945]
[1770005732144,0.1024,2222.1,2220.0,28.237961]
[1770005732467,13.17211012,2222.2,2220.1,13.737961]
[1770005732760,1.31721101,2222.1,2220.0,13.9715313]
[1770005732960,1.31721101,2222.1,2219.9,0.945]
[1770005732961,0.0011,2222.5,2220.8,13.737961]
[1770005733134,0.0011,2222.5,2221.0,13.737961]
[1770005733971,0.0011,2222.5,2221.1,14.5]
[1770005734147,0.0011,2222.5,2221.2,13.737961]
[1770005734735,0.0011,2222.5,2220.9,0.945]
[1770005734736,0.0011,2223.6,2221.8,13.9715313]
[1770005734935,0.0011,2223.6,2221.9,15.445]
[1770005735170,0.0011,2223.6,2221.9,14.5]
[1770005735358,0.0011,2223.6,2220.6,5.39267506]
[1770005735359,13.17211012,2223.2,2221.6,0.945]
[1770005735555,13.17211012,2223.2,2220.6,27.757261]
[1770005735556,13.17211012,2223.2,2221.3,0.945]
[1770005735765,1.31721101,2223.1,2221.3,15.445]
[1770005736067,1.31721101,2223.1,2220.7,13.737961]
[1770005736068,13.27451012,2223.0,2220.8,0.001]
[1770005736255,0.0011,2222.5,2220.9,0.945]
[1770005736764,0.0011,2222.5,2221.0,14.5]
[1770005737836,0.0011,2222.5,2220.8,0.001]
[1770005738585,13.40558193,2222.2,2220.8,0.001]
[1770005738882,0.1024,2222.0,2220.8,0.001]
[1770005739174,1.34055819,2222.1,2220.8,0.001]
[1770005739940,13.40668193,2222.5,2220.8,0.001]
[1770005740380,0.1035,2222.5,2220.8,0.001]
[1770005741258,0.0011,2222.5,2220.8,0.001]
[1770005741436,0.0011,2222.5,2220.8,13.2467793]
[1770005741642,0.0011,2222.5,2221.1,13.2457793]
[1770005742172,0.0011,2222.5,2220.8,0.001]
[1770005742373,0.0011,2222.5,2220.8,13.2467793]
[1770005743384,0.0011,2222.5,2220.8,0.001]
[1770005744277,13.30318193,2222.4,2220.8,0.001]
[1770005744479,0.1024,2222.3,2220.8,0.001]
[1770005744647,1.44306819,2222.3,2220.8,0.001]
[1770005745376,13.40558193,2222.1,2220.8,0.001]
[1770005745574,13.53675223,2221.8,2220.5,0.001]
[1770005745788,0.1024,2221.7,2220.5,0.001]
[1770005746088,13.30318193,2221.7,2220.5,0.001]
[1770005746255,1.33031819,2221.6,2220.5,0.001]
[1770005746982,0.1024,2222.1,2220.5,0.001]
[1770005747549,12.84520107,2222.1,2220.5,0.001]
[1770005747749,12.84520107,2221.9,2220.5,0.001]
[1770005749870,12.84520107,2221.7,2219.8,0.945]
[1770005750049,0.1024,2221.5,2219.8,0.945]
[1770005750469,12.74280107,2221.2,2219.7,0.001]
[1770005750662,12.84520107,2221.0,2219.7,0.001]
[1770005750865,0.2335703,2220.9,2219.7,0.001]
[1770005751084,12.84520107,2220.8,2219.7,0.001]
[1770005751382,0.1024,2220.6,2219.7,0.001]
[1770005751590,1.30787714,2220.7,2219.7,0.001]
[1770005751889,0.1024,2221.0,2219.7,0.001]
[1770005752057,12.84520107,2221.0,2219.7,0.001]
[1770005752397,0.1024,2221.3,2219.7,0.001]
[1770005754085,0.1024,2221.1,2219.7,0.001]
[1770005754788,0.1024,2221.5,2219.7,13.44891047]
[1770005754995,1.51770782,2221.5,2219.7,13.44891047]
[1770005755292,1.41530782,2221.5,2219.7,13.44891047]
[1770005755588,0.945,2222.1,2219.7,13.44891047]
[1770005755589,0.1024,2222.0,2219.7,13.44891047]
[1770005755790,12.84520107,2222.0,2219.7,0.001]
[1770005755953,0.1024,2221.5,2219.7,0.001]
[1770005756158,14.12972118,2221.5,2219.7,0.001]
[1770005756474,0.1024,2221.3,2219.7,0.001]
[1770005756802,0.1024,2221.2,2219.7,0.001]
[1770005757605,1.28452011,2221.5,2219.7,0.001]
[1770005757818,12.74280107,2221.8,2219.7,13.44891047]
[1770005758161,0.1024,2221.7,2219.7,13.44891047]
[1770005758982,0.1024,2221.5,2219.7,13.44891047]
[1770005760091,0.1024,2221.5,2219.9,0.001]
[1770005760297,12.84520107,2221.4,2219.9,0.001]
[1770005760607,1.28452011,2221.3,2219.9,0.001]
[1770005761091,0.1024,2221.2,2219.9,0.001]
[1770005762198,1.28452011,2221.3,2219.9,0.001]
[1770005762395,0.1024,2221.2,2219.9,0.001]
[1770005763067,1.28452011,2221.3,2219.9,0.001]